{"text_format":"3","workbook":"xlsx","n_sheets":2,"sheets":["Лист","Лист1"],"not_rendered":{"defined_names":1},"read":"whole","date_system":"1900"}

{"sheet":"Лист","index":0,"n_rows":99,"n_cols":31,"rows_kept":99,"merged":[[0,1,0,22],[1,1,4,1],[1,2,4,2],[1,3,3,3],[1,4,4,4],[1,5,4,5],[1,6,1,14],[1,15,2,22],[2,6,2,10],[2,11,2,12],[2,14,4,14],[3,6,4,6],[3,8,3,10],[3,11,4,11],[3,12,4,12],[3,15,3,16],[3,17,3,18],[3,19,3,20],[3,21,3,22],[93,1,98,10],[93,11,93,14],[94,11,94,14],[95,11,95,14],[96,11,96,14],[97,11,97,14],[98,11,98,14]]}
[null,"                                                        3. План учебного процесса        по специальности 43.02.15  «Поварское и кондитерское дело»\n          "]
[null,"Индекс","Наименование учебных циклов, дисциплин, профессиональных модулей, МДК, практик",null,"Объем образовательной программы (час.)","Самостоятельная работа","Объем образовательной программы в академических часах,      в том числе",{"$nulls":8},"Распределение часов по курсам и семестрам (час. в семестр)"]
[{"$nulls":6},"Учебные занятия",{"$nulls":4},"Практика",null,null,"Промежуточная аттестация"]
[{"$nulls":6},"Всего",{"$nulls":4},"Учебная","Производственная",null,null,"1 курс",null,"2 курс",null,"3 курс",null,"4 курс"]
[{"$nulls":3},"экзамен ",{"$nulls":3},"в т. ч. в форме прак. подготовки","Учебные занятия","Лабораторные и практические занятия","Курсовая работа (проект) ",null,null,"Консультация",null,"1     семестр 17/0   недель","2        семестр   22/0    недель","3       семестр  11/6   недель","4        семестр 13/10  недель","5      семестр  8/8   недель","6      семестр  14/10   недель","7       семестр    10/6       недель","8               семестр       7/6/4/6       недель "]
[null,1,2,3,4,5,6,null,7,8,null,9,10,null,11,12,13,14,15,16,17,18,19]
[null,"ОУД. 00","Общеобразовательный учебный цикл","1;6;6",1476,{"$f":"SUM(F8:F25)","v":0},{"$f":"SUM(G8:G25)","v":1404},30,900,{"$f":"SUM(J8:J25)","v":504},0,0,0,36,36,452,784,158,82,0,0,0,0]
[null,"ОУД. 01","Русский язык","Э",90,null,78,null,42,36,{"$nulls":3},6,6,34,56]
[null,"ОУД. 02","Литература"," -,ДЗ",108,null,108,null,74,34,{"$nulls":7},50,58]
[null,"ОУД. 03","Иностранный язык"," -,Э",144,null,132,null,64,68,{"$nulls":3},6,6,null,82,62]
[null,"ОУД. 04","Математика","-,Э",246,null,234,20,174,60,{"$nulls":3},6,6,68,178]
[null,"ОУД. 05","История","-,ДЗ",134,null,134,null,112,22,{"$nulls":5},52,82,{"$nulls":12},2,6]
[null,"ОУД .06","Физическая культура"," -,ДЗ",76,null,76,null,4,72,{"$nulls":5},30,46]
[null,"ОУД .07","Основы безопасности и защиты Родины"," -, ДЗ",70,null,70,null,20,50,{"$nulls":5},34,36]
[null,"ОУД. 08","География"," -,З",72,null,72,null,46,26,{"$nulls":5},54,18]
[null,"ОУД. 09","Информатика","Э",84,null,72,10,50,22,{"$nulls":3},6,6,44,40]
[null,"ОУД. 10","Физика","ДЗ",102,null,102,null,82,20,{"$nulls":5},46,56]
[null,"ОУД. 11","Обществознание","ДЗ",70,null,70,null,58,12,{"$nulls":7},46,24]
[null,"ОУД. 12","Химия","-,Э",146,null,134,null,90,44,{"$nulls":3},6,6,34,112]
[null,"ОУД. 13","Биология","-,Э",92,null,80,null,52,28,{"$nulls":3},6,6,34,58]
[null,"ОУД. 14","Родная литература","-ДЗ",42,null,42,null,32,10,{"$nulls":5},22,20]
[null,null,"Индивидуальный проект"]
[]
[]
[]
[null,"ОГСЭ.00","Общий гуманитарный и социально-экономический учебный цикл ","0;3;1",{"$f":"SUM(E27:E31)","v":516},42,462,null,200,262,0,0,0,6,6,0,0,92,48,44,168,120,44]
[null,"ОГСЭ.01","Основы философии"," -, ДЗ",46,6,40,null,{"$f":"G27-J27","v":40},0,{"$nulls":10},46]
[null,"ОГСЭ.02","История"," ДЗ",48,6,42,null,{"$f":"G28-J28","v":42},0,{"$nulls":7},48]
[null,"ОГСЭ.03","Иностранный язык в профессиональной деятельности","-,Э",206,10,184,null,82,102,{"$nulls":3},6,6,null,null,22,22,20,40,80,22]
[null,"ОГСЭ.04","Физическая культура"," -, ДЗ",174,10,164,null,4,160,{"$nulls":7},22,26,24,40,40,22]
[null,"ОГСЭ.05","Психология общения"," -, ДЗ",42,10,32,null,32,0,{"$nulls":10},42]
[null,"ЕН.00","Математический и общий естественнонаучный учебный цикл ","1;0;1",{"$f":"SUM(E33:E34)","v":208},{"$f":"SUM(F33:F34)","v":16},180,null,124,56,0,0,0,6,6,0,0,22,52,48,44,0,42]
[null,"ЕН.01.","Химия","-,Э",166,10,144,null,94,50,{"$nulls":3},6,6,null,null,22,52,48,44]
[null,"ЕН.0.2","Экологические основы природопольования"," -, З",42,6,36,null,30,6,{"$nulls":12},42]
[null,"ОП.00","Общепрофессиональный учебный цикл","1;5;4",{"$f":"SUM(E36:E45)","v":810},66,696,38,428,268,0,0,0,24,24,160,80,78,88,208,142,26,28]
[null,"ОП.01","Микробиология, физиология питания,санитария и гигиена.","Э",70,6,52,8,38,14,{"$nulls":3},6,6,70]
[null,"ОП.02","Организация хранения и контроль запасов и сырья"," -, ДЗ",102,6,96,null,58,{"$f":"G37-I37","v":38},{"$nulls":5},54,48]
[null,"ОП.03","Техническое оснащение организаций питания"," -, ДЗ",68,4,64,null,38,26,{"$nulls":5},36,32]
[null,"ОП.04","Организация обслуживания","Э",70,6,52,null,38,14,{"$nulls":3},6,6,{"$nulls":3},36,34]
[null,"ОП.05","Основы экономики, менеджмента, маркетинга","-,Э",140,6,122,null,72,50,{"$nulls":3},6,6,{"$nulls":4},58,28,26,28]
[null,"ОП.06","Правовые основы профессиональной деятельности"," -, ДЗ",58,10,48,null,28,20,{"$nulls":9},20,38]
[null,"ОП.07","Информационные технологии в профессиональной деятельности","Э",118,10,96,30,58,38,{"$nulls":3},6,6,{"$nulls":4},42,76]
[null,"ОП.08","Охрана труда","  ДЗ",34,2,32,null,20,12,{"$nulls":9},34]
[null,"ОП.09","Безопасность жизнедеятельности","  ДЗ",72,10,62,null,36,26,{"$nulls":7},26,26,20]
[null,"ОП.10","Татарский язык в профессиональной деятельности"," -, З",78,6,72,null,42,30,{"$nulls":7},52,26]
[null,"П.00","Профессиональный учебный цикл","0;20;15",{"$f":"E47+E53+E59+E65+E71+E77+E82","v":2786},{"$f":"F47+F53+F59+F65+F71+F77+F82","v":92},1002,null,720,250,32,540,900,126,126,0,0,262,606,312,534,466,{"$f":"W47+W53+W59+W65+W71+W77+W82","v":606}]
[null,"ПМ.00","Профессиональные модули","0;20;15",{"$f":"E48+E54+E60+E66+E72+E78+E83","v":2714},92,1002,1422,720,250,32,540,900,90,90,0,0,262,594,312,510,466,570]
[null,"ПМ.01","Организация и ведение процессов приготовления и подготовки к реализации полуфабрикатов для блюд, кулинарных изделий сложного ассортимента","0;3;2",{"$f":"SUM(E49:E53)","v":302},{"$f":"SUM(F49:F53)","v":12},122,158,88,34,0,72,72,12,12,0,0,142,160,0,0,0,0]
[null,"МДК.01.01","Организация процессов приготовления, подготовки к реализации кулинарных полуфабрикатов"," ДЗ",32,2,30,4,22,8,{"$nulls":7},32]
[null,"МДК.01.02","Процессы приготовления, подготовки к реализации кулинарных полуфабрикатов","-,Э",114,10,92,10,66,26,{"$nulls":3},6,6,null,null,74,40]
[null,"УП.01","Учебная практика "," -, ДЗ",72,null,null,72,{"$nulls":3},72,{"$nulls":5},36,36]
[null,"ПП.01","Производственная практика "," -, ДЗ",72,null,null,72,{"$nulls":4},72,{"$nulls":5},72]
[null,null," Экзамен по мудулю","-,Э",12,{"$nulls":8},6,6,{"$nulls":3},12]
[null,"ПМ.02","Организация и ведение процессов приготовления, оформления и подготовки к реализации горячих блюд, кулинарных изделий, закусок сложного ассортимента с учетом потребностей различных категорий потребителей, видов и форм обслуживания","0;3;2",{"$f":"SUM(E55:E59)","v":486},{"$f":"SUM(F55:F59)","v":12},198,284,134,48,16,108,144,12,12,0,0,0,118,152,216,0,0]
[null,"МДК.02.01","Организация процессов приготовления, подготовки к реализации горячих блюд, кулинарных изделий, закусок сложного ассортимента"," -, ДЗ",34,null,34,2,28,6,{"$nulls":8},34]
[null,"МДК.02.02","Процессы приготовления, подготовки к реализации горячих блюд, кулинарных изделий, закусок сложного ассортимента","-,Э",188,12,164,30,106,42,16,null,null,6,6,{"$nulls":3},84,80,24]
[null,"УП.02","Учебная практика "," -, ДЗ",108,null,null,108,{"$nulls":3},108,{"$nulls":7},72,36]
[null,"ПП.02","Производственная практика "," -, ДЗ",144,null,null,144,{"$nulls":4},144,{"$nulls":7},144]
[null,null," Экзамен по мудулю","-,Э",12,{"$nulls":8},6,6,{"$nulls":5},12]
[null,"ПМ.03","Организация и ведение процессов приготовления, оформления и подготовки к реализации холодных блюд, кулинарных изделий, закусок сложного ассортимента с учетом потребностей различных категорий потребителей, видов и форм обслуживания","0;3;2",{"$f":"SUM(E61:E65)","v":316},{"$f":"SUM(F61:F65)","v":10},102,192,72,30,0,72,108,12,12,0,0,0,0,160,156,0,0]
[null,"МДК.03.01","Организация процессов приготовления, подготовки к реализации холодных блюд, кулинарных изделий, закусок сложного ассортимента","  ДЗ",36,4,32,4,22,10,{"$nulls":9},36]
[null,"МДК.03.02","Процессы приготовления, подготовки к реализации холодных блюд, кулинарных изделий, закусок сложного ассортимента","Э",88,6,70,8,50,20,{"$nulls":3},6,6,{"$nulls":4},88]
[null,"УП.03","Учебная практика "," -, ДЗ",72,null,null,72,{"$nulls":3},72,{"$nulls":7},36,36]
[null,"ПП.03","Производственная практика "," -, ДЗ",108,null,null,108,{"$nulls":4},108,{"$nulls":7},108]
[null,null," Экзамен по мудулю","-,Э",12,{"$nulls":8},6,6,{"$nulls":5},12]
[null,"ПМ.04","Организация и ведение процессов приготовления, оформления и подготовки к реализации холодных и горячих десертов, напитков сложного ассортимента с учетом потребностей различных категорий потребителей, видов и форм обслуживания","0;3;2",{"$f":"SUM(E67:E71)","v":260},{"$f":"SUM(F67:F71)","v":12},116,124,86,30,0,36,72,12,12,0,0,0,0,0,0,110,150]
[null,"МДК.04.01","Организация процессов приготовления, подготовки к реализации холодных и горячих десертов, напитков сложного ассортимента","  ДЗ",40,6,34,4,24,10,{"$nulls":11},40]
[null,"МДК.04.02","Процессы приготовления, полготовки к реализации холодных и горячих десертов, напитков сложного ассортимента","-,Э",100,6,82,12,62,20,{"$nulls":3},6,6,{"$nulls":6},70,30]
[null,"УП.04","Учебная практика "," -, ДЗ",36,null,null,36,{"$nulls":3},36,{"$nulls":10},36]
[null,"ПП.04","Производственная практика "," -, ДЗ",72,null,null,72,{"$nulls":4},72,{"$nulls":9},72]
[null,null," Экзамен по мудулю","-,Э",12,{"$nulls":8},6,6,{"$nulls":7},12]
[null,"ПМ.05","Организация и ведение процессов приготовления, оформления и подготовки к реализации хлебобулочных, мучных кондитерских изделий сложного ассортимента с учетом потребностей различных категорий потребителей, видов и форм обслуживания","0;3;2",{"$f":"SUM(E73:E77)","v":488},{"$f":"SUM(F73:F77)","v":16},232,244,190,42,0,108,108,12,12,0,0,0,0,0,138,230,120]
[null,"МДК.05.01","Организация процессов приготовления, подготовки к реализации хлебобулочных, мучных кондитерских изделий сложного ассортимента"," -, ДЗ",42,6,36,8,24,12,{"$nulls":10},22,20]
[null,"МДК.05.02","Процессы приготовления, подготовки к реализации хлебобулочных, мучных кондитерских изделий сложного ассортимента","Э",218,10,196,20,166,30,{"$nulls":3},6,6,{"$nulls":5},116,102]
[null,"УП.05","Учебная практика "," ДЗ",108,null,null,108,{"$nulls":3},108,{"$nulls":9},108]
[null,"ПП.05","Производственная практика "," -, ДЗ",108,null,null,108,{"$nulls":4},108,{"$nulls":9},108]
[null,null," Экзамен по мудулю","-,Э",12,{"$nulls":8},6,6,{"$nulls":7},12]
[null,"ПМ.06","Организация и контроль текущей деятельности подчиненного персонала","0;2;2",{"$f":"SUM(E79:E82)","v":282},{"$f":"SUM(F79:F82)","v":10},104,154,52,36,16,36,108,12,12,0,0,0,0,0,0,126,156]
[null,"МДК. 06.01","Оперативное управление текущей деятельностью подчиненного персонала","Э",126,10,104,10,52,36,16,null,null,6,6,{"$nulls":6},126]
[null,"УП.06","Учебная практика "," -, ДЗ",36,null,null,36,{"$nulls":3},36,{"$nulls":10},36]
[null,"ПП.06","Производственная практика "," -, ДЗ",108,null,null,108,{"$nulls":4},108,{"$nulls":9},108]
[null,null," Экзамен по мудулю","-,Э",12,{"$nulls":8},6,6,{"$nulls":7},12]
[null,"ПМ.07","Выполнение работ по одной или нескольким профессиям рабочих, должностям служащих (повар,кондитер)","0;3;3",{"$f":"SUM(E84:E89)","v":580},{"$f":"SUM(F84:F89)","v":20},128,266,98,30,0,108,288,18,18,0,0,120,316,0,0,0,144]
[null,"МДК.07.01","Технологические процессы приготовления кулинарной продукции массового спроса и её отпуск","-,Э",90,10,68,8,52,16,{"$nulls":3},6,6,null,null,44,46]
[null,"МДК.07.02","Технологические процессы приготовления простых хлебобулочных, мучных кондитерских изделий","-,Э",82,10,60,6,46,14,{"$nulls":3},6,6,null,null,40,42]
[null,"УП.07","Учебная практика "," -, ДЗ",108,null,0,108,{"$nulls":3},108,{"$nulls":5},36,72]
[null,"ПП.07","Производственная практика "," -, ДЗ",144,null,0,144,{"$nulls":4},144,{"$nulls":5},144]
[null,null," Экзамен по мудулю","-,Э",12,{"$nulls":8},6,6,{"$nulls":3},12]
[null,"ПДП.00","Производственная практика (преддипломная)"," -, ДЗ",144,{"$nulls":7},144,{"$nulls":9},144]
[null,"ГИА.00","Государственная итоговая аттестация","Э",216,null,216,null,72,144,{"$nulls":12},216]
[null,"ГИА.01 ","Подготовка выпускной квалификационной работы (с 18.05 по 14.06)  "," ",144,{"$nulls":17},144]
[null,"ГИА.02","Защита выпускной квалификационной работы (с 15.06 по 28.06)"," ",72,{"$nulls":17},72]
[null,null,"В С Е Г О","3;34;27",{"$f":"E7+E26+E32+E35+E47+E90","v":5940},{"$f":"F7+F26+F32+F35+F47+F90","v":216},{"$f":"G7+G26+G32+G35+G47+G90","v":3960},1490,{"$f":"I7+I26+I32+I35+I47+I90","v":2444},1484,32,540,900,162,162,612,864,612,864,612,864,612,900]
[{"$nulls":11},"Дисциплин и МДК",{"$nulls":3},{"$f":"P7+P26+P32+P35+P49+P50+P55+P56+P61+P62+P67+P68+P73+P74+P79+P84+P85","v":612},864,540,516,504,516,504,144]
[{"$nulls":11},"Учебной практики",{"$nulls":3},{"$f":"P51+P57+P63+P69+P75+P80+P86","v":0},{"$f":"Q51+Q57+Q63+Q69+Q75+Q80+Q86","v":0},72,108,108,72,108,72]
[{"$nulls":11},"Производственной практики",{"$nulls":3},{"$f":"P52+P58+P64+P70+P76+P81+P89","v":0},{"$f":"Q52+Q58+Q64+Q70+Q76+Q81+Q89","v":0},0,216,0,252,0,432]
[{"$nulls":11},"Экзаменов",{"$nulls":3},1,5,1,5,2,5,2,6]
[{"$nulls":11},"Диф зачетов",{"$nulls":3},0,6,2,7,3,7,3,6]
[{"$nulls":11},"Зачетов",{"$nulls":4},1,null,1,{"$nulls":3},1]

{"sheet":"Лист1","index":1,"n_rows":0,"n_cols":0,"rows_kept":0}